[Event "12th Maria Albulet Memorial 2019"]
[Site "Braila"]
[Date "2019.10.04"]
[Round "4.4"]
[White "Bucur, Denisa-Andreea"]
[Black "Makropoulou, Marina"]
[Result "1-0"]
[ECO "D37"]
[WhiteElo "1888"]
[BlackElo "2201"]
[Annotator "NA"]
[PlyCount "79"]
[EventDate "2019.10.02"]
[EventType "swiss"]
[EventCountry "ROU"]
[SourceTitle "playchess.com"]
[Source "ChessBase"]
[SourceQuality "1"]
[TimeControl "40/5400+30:900+30"]

1. d4 {[%emt 0:00:00]} Nf6 {[%emt 0:00:07]} 2. Nf3 {[%emt 0:00:00]} e6 {[%emt 0:00:24]} 3. c4 {[%emt 0:00:00]} d5 {[%emt 0:00:52]} 4. Nc3 {[%emt 0:00:04]} Be7 {[%emt 0:00:34]} 5. Bf4 {[%emt 0:00:22]} O-O {[%emt 0:00:21]} 6. e3 {[%emt 0:00:13]} Nbd7 {[%emt 0:00:18]} 7. c5 {[%emt 0:00:46]} Nh5 {[%emt 0:00:48]} 8. Bd3 {[%emt 0:00:33]} Nxf4 {[%emt 0:00:42]} 9. exf4 {[%emt 0:00:06]} b6 {[%emt 0:00:11]} 10. b4 {[%emt 0:00:54]} a5 {[%emt 0:00:12]} 11. a3 {[%emt 0:00:16]} c6 {[%emt 0:00:21]} 12. O-O {[%emt 0:01:21]} Ba6 {[%emt 0:01:15]} 13. Bxa6 {[%emt 0:02:05]} Rxa6 {[%emt 0:00:05]} 14. Qe2 {[%emt 0:01:16]} b5 {[%emt 0:11:04]} 15. Rfe1 {[%emt 0:13:25]} Bf6 {[%emt 0:03:07]} 16. Ne5 {[%emt 0:03:39]} Bxe5 {[%emt 0:01:27]} 17. fxe5 {[%emt 0:00:20]} Qh4 {[%emt 0:00:22]} 18. Red1 {[%emt 0:23:44]} Rfa8 {[%emt 0:01:09]} 19. g3 {[%emt 0:00:20]} Qh3 {[%emt 0:01:54]} 20. Na2 {[%emt 0:11:46]} Nb8 {[%emt 0:06:57]} 21. a4 {[%emt 0:08:00]} axb4 {[%emt 0:08:39]} 22. axb5 {[%emt 0:00:19]} Ra3 {[%emt 0:11:11]} 23. Qb2 {[%emt 0:01:50]} cxb5 {[%emt 0:40:58]} 24. Nxb4 {[%emt 0:01:48]} R3a4 {[%emt 0:00:11]} 25. c6 {[%emt 0:07:23]} Qg4 {[%emt 0:00:27]} 26. Rdc1 {[%emt 0:02:23]} Nxc6 {[%emt 0:03:16]} 27. Nxc6 {[%emt 0:00:07]} h5 {[%emt 0:00:04]} 28. Rxa4 {[%emt 0:04:50]} bxa4 {[%emt 0:00:25]} 29. Qb7 {[%emt 0:02:32]} Rf8 {[%emt 0:00:51]} 30. Qa6 {[%emt 0:04:07]} h4 {[%emt 0:02:47]} 31. Qxa4 {[%emt 0:00:29]} Qg5 {[%emt 0:03:11]} 32. f4 {[%emt 0:01:29]} Qh6 {[%emt 0:01:11]} 33. Ne7+ {[%emt 0:02:07]} Kh8 {[%emt 0:00:16]} 34. Qa3 {[%emt 0:03:57]} Rb8 {[%emt 0:00:38]} 35. Rc8+ {[%emt 0:00:15]} Rxc8 {[%emt 0:00:08]} 36. Nxc8 {[%emt 0:00:03]} Kh7 {[%emt 0:01:00]} 37. Qe7 {[%emt 0:01:42]} hxg3 {[%emt 0:00:25]} 38. hxg3 {[%emt 0:00:06]} Kg8 {[%emt 0:00:40]} 39. Qd8+ {[%emt 0:00:27]} Kh7 {[%emt 0:00:01]} 40. Ne7 {[%emt 0:00:00]} 1-0

[Event "12th Maria Albulet Memorial 2019"]
[Site "Braila"]
[Date "2019.10.04"]
[Round "4.5"]
[White "Verbin, Valentina"]
[Black "Cosman, Andreea-Marioara"]
[Result "1/2-1/2"]
[ECO "B52"]
[WhiteElo "2076"]
[BlackElo "2165"]
[Annotator "NA"]
[PlyCount "71"]
[EventDate "2019.10.02"]
[EventType "swiss"]
[EventCountry "ROU"]
[SourceTitle "playchess.com"]
[Source "ChessBase"]
[SourceQuality "1"]
[TimeControl "40/5400+30:900+30"]

1. e4 {[%emt 0:00:00]} c5 {[%emt 0:00:00]} 2. Nf3 {[%emt 0:00:00]} d6 {[%emt 0:00:00]} 3. Bb5+ {[%emt 0:00:00]} Bd7 {[%emt 0:00:00]} 4. Bxd7+ {[%emt 0:00:16]} Qxd7 {[%emt 0:00:14]} 5. c4 {[%emt 0:00:11]} Nc6 {[%emt 0:00:17]} 6. Nc3 {[%emt 0:00:16]} g6 {[%emt 0:00:58]} 7. d4 {[%emt 0:00:13]} cxd4 {[%emt 0:00:13]} 8. Nxd4 {[%emt 0:00:05]} Bg7 {[%emt 0:00:05]} 9. Be3 {[%emt 0:00:15]} Nf6 {[%emt 0:00:46]} 10. f3 {[%emt 0:00:22]} O-O {[%emt 0:02:50]} 11. O-O {[%emt 0:00:47]} Rac8 12. b3 {[%emt 0:00:34]} Rfd8 {[%emt 0:05:59]} 13. Qd2 {[%emt 0:02:37]} e6 {[%emt 0:03:58]} 14. Rfd1 {[%emt 0:02:51]} b6 {[%emt 0:04:36]} 15. Rac1 {[%emt 0:03:16]} Qb7 {[%emt 0:06:18]} 16. Qf2 {[%emt 0:01:46]} Rd7 {[%emt 0:14:16]} 17. Qh4 {[%emt 0:04:23]} Ne8 {[%emt 0:14:36]} 18. Nde2 {[%emt 0:10:28]} Ne7 {[%emt 0:09:08]} 19. Bd4 {[%emt 0:03:08]} a6 {[%emt 0:05:00]} 20. Bxg7 {[%emt 0:03:12]} Kxg7 {[%emt 0:01:40]} 21. Qf4 {[%emt 0:02:06]} Nc6 {[%emt 0:07:25]} 22. a4 {[%emt 0:15:35]} Rcd8 {[%emt 0:01:20]} 23. h4 {[%emt 0:03:28]} h6 {[%emt 0:03:51]} 24. Qe3 {[%emt 0:10:13]} Nc7 {[%emt 0:03:26]} 25. Nd4 {[%emt 0:03:13]} Kh7 {[%emt 0:04:21]} 26. f4 {[%emt 0:02:33]} Nxd4 {[%emt 0:02:41]} 27. Qxd4 {[%emt 0:00:35]} b5 {[%emt 0:01:04]} 28. h5 {[%emt 0:10:51]} bxc4 {[%emt 0:01:16]} 29. bxc4 {[%emt 0:09:56]} Qc6 {[%emt 0:01:12]} 30. a5 {[%emt 0:00:19]} Ne8 {[%emt 0:03:13]} 31. hxg6+ {[%emt 0:00:56]} fxg6 {[%emt 0:00:20]} 32. f5 {[%emt 0:01:16]} exf5 33. exf5 {[%emt 0:00:41]} Qc5 {[%emt 0:03:37]} 34. fxg6+ {[%emt 0:01:34]} Kxg6 {[%emt 0:00:07]} 35. Qxc5 {[%emt 0:01:19]} dxc5 {[%emt 0:00:05]} 36. Rd5 {[%emt 0:06:20]} 1/2-1/2

[Event "12th Maria Albulet Memorial 2019"]
[Site "Braila"]
[Date "2019.10.04"]
[Round "4.6"]
[White "Mihailova, Alina"]
[Black "Didiliuc, Dariana-Gabriela"]
[Result "0-1"]
[ECO "A57"]
[WhiteElo "1770"]
[BlackElo "1798"]
[Annotator "NA"]
[PlyCount "140"]
[EventDate "2019.10.02"]
[EventType "swiss"]
[EventCountry "ROU"]
[SourceTitle "playchess.com"]
[Source "ChessBase"]
[SourceQuality "1"]
[TimeControl "40/5400+30:900+30"]

1. d4 Nf6 {[%emt 0:00:00]} 2. c4 {[%emt 0:00:00]} c5 {[%emt 0:00:00]} 3. d5 {[%emt 0:00:00]} b5 {[%emt 0:00:00]} 4. Nd2 {[%emt 0:00:40]} a6 {[%emt 0:00:57]} 5. e4 {[%emt 0:00:36]} d6 {[%emt 0:00:24]} 6. Ngf3 {[%emt 0:00:44]} g6 {[%emt 0:01:29]} 7. b3 {[%emt 0:00:43]} Bg7 {[%emt 0:01:06]} 8. Bb2 {[%emt 0:00:20]} O-O {[%emt 0:00:18]} 9. Qc2 {[%emt 0:03:53]} Nbd7 {[%emt 0:12:25]} 10. cxb5 {[%emt 0:06:28]} axb5 {[%emt 0:01:02]} 11. Bxb5 {[%emt 0:00:22]} Qa5 {[%emt 0:00:16]} 12. Bd3 {[%emt 0:01:10]} Ba6 {[%emt 0:00:49]} 13. Bxa6 {[%emt 0:03:31]} Qxa6 {[%emt 0:00:05]} 14. Nc4 {[%emt 0:00:31]} Rfb8 {[%emt 0:00:41]} 15. O-O {[%emt 0:00:40]} Nb6 {[%emt 0:01:58]} 16. Nxb6 {[%emt 0:01:26]} Rxb6 {[%emt 0:00:05]} 17. Nd2 {[%emt 0:00:25]} Qb7 {[%emt 0:01:10]} 18. Nc4 {[%emt 0:08:52]} Rba6 {[%emt 0:00:20]} 19. a4 {[%emt 0:00:21]} Rb8 {[%emt 0:00:29]} 20. Nd2 {[%emt 0:01:00]} Bh6 {[%emt 0:13:41]} 21. Bxf6 {[%emt 0:08:10]} exf6 {[%emt 0:00:10]} 22. Rfb1 {[%emt 0:13:24]} f5 {[%emt 0:09:14]} 23. Nc4 {[%emt 0:05:48]} Bg7 {[%emt 0:03:52]} 24. Ra2 {[%emt 0:00:55]} Re8 {[%emt 0:01:29]} 25. exf5 {[%emt 0:09:07]} Qxd5 {[%emt 0:00:24]} 26. fxg6 {[%emt 0:00:19]} hxg6 {[%emt 0:00:30]} 27. Rd1 {[%emt 0:01:46]} Qe6 {[%emt 0:00:18]} 28. h3 {[%emt 0:00:56]} d5 {[%emt 0:00:47]} 29. Ne3 {[%emt 0:00:41]} d4 {[%emt 0:00:55]} 30. Nc4 {[%emt 0:01:10]} Rb8 {[%emt 0:02:12]} 31. Qd3 {[%emt 0:00:53]} Qc6 {[%emt 0:01:19]} 32. Re2 {[%emt 0:02:31]} Qb7 {[%emt 0:00:28]} 33. Nd2 {[%emt 0:03:18]} Bh6 {[%emt 0:01:10]} 34. Ne4 {[%emt 0:11:20]} Rc6 {[%emt 0:01:03]} 35. Rc2 {[%emt 0:00:40]} Qxb3 {[%emt 0:05:20]} 36. Qxb3 {[%emt 0:01:17]} Rxb3 {[%emt 0:00:05]} 37. Rxc5 {[%emt 0:00:17]} Rxc5 {[%emt 0:01:02]} 38. Nxc5 {[%emt 0:00:04]} Rc3 {[%emt 0:00:11]} 39. Ne4 {[%emt 0:01:13]} Rc4 {[%emt 0:00:00]} 40. a5 {[%emt 0:00:00]} Bg7 41. Nd6 Ra4 {[%emt 0:02:01]} 42. Nb7 {[%emt 0:03:21]} Be5 {[%emt 0:00:31]} 43. Kf1 Bb8 {[%emt 0:00:55]} 44. Ke2 {[%emt 0:02:27]} Ba7 {[%emt 0:01:39]} 45. Rc1 {[%emt 0:05:29]} Ra3 46. Rd1 Kf8 {[%emt 0:03:45]} 47. Rd3 {[%emt 0:03:51]} Ra4 {[%emt 0:00:08]} 48. g4 {[%emt 0:01:20]} Ke7 {[%emt 0:01:30]} 49. Rb3 {[%emt 0:01:36]} Ra2+ {[%emt 0:01:43]} 50. Kf3 {[%emt 0:01:40]} Kd7 {[%emt 0:02:43]} 51. Ke4 {[%emt 0:02:49]} Rxf2 {[%emt 0:01:32]} 52. Kd5 {[%emt 0:00:23]} Rc2 {[%emt 0:00:23]} 53. Rf3 {[%emt 0:08:03]} Ke7 {[%emt 0:01:31]} 54. g5 {[%emt 0:01:50]} Rc3 {[%emt 0:02:31]} 55. Rf1 {[%emt 0:01:29]} d3 {[%emt 0:04:32]} 56. Re1+ {[%emt 0:02:17]} Kd7 57. Rf1 Ke7 {[%emt 0:00:59]} 58. Re1+ {[%emt 0:00:29]} Kf8 {[%emt 0:01:55]} 59. Rd1 Be3 {[%emt 0:00:35]} 60. Ke4 {[%emt 0:01:47]} d2 {[%emt 0:01:28]} 61. a6 {[%emt 0:00:16]} Bxg5 {[%emt 0:02:54]} 62. Nd6 {[%emt 0:00:44]} Ra3 {[%emt 0:00:12]} 63. Nc4 {[%emt 0:00:07]} Rxa6 {[%emt 0:01:36]} 64. Kd3 {[%emt 0:00:37]} Kg7 {[%emt 0:00:53]} 65. Ke2 {[%emt 0:00:46]} Re6+ {[%emt 0:00:21]} 66. Kf1 {[%emt 0:00:32]} Kh6 {[%emt 0:00:07]} 67. Nxd2 {[%emt 0:00:08]} Rd6 68. Ke2 {[%emt 0:00:02]} Rxd2+ {[%emt 0:00:35]} 69. Rxd2 {[%emt 0:00:02]} Bxd2 {[%emt 0:00:05]} 70. Kxd2 Kh5 0-1

[Event "12th Maria Albulet Memorial 2019"]
[Site "Braila"]
[Date "2019.10.04"]
[Round "4.7"]
[White "Anghel, Maria"]
[Black "Pitigoi, Sabina-Andreea"]
[Result "1/2-1/2"]
[ECO "E21"]
[WhiteElo "1743"]
[BlackElo "1490"]
[Annotator "NA"]
[PlyCount "57"]
[EventDate "2019.10.02"]
[EventType "swiss"]
[EventCountry "ROU"]
[SourceTitle "playchess.com"]
[Source "ChessBase"]
[SourceQuality "1"]
[TimeControl "40/5400+30:900+30"]

1. d4 {[%emt 0:00:00]} Nf6 {[%emt 0:00:00]} 2. Nf3 {[%emt 0:00:00]} e6 {[%emt 0:00:00]} 3. c4 {[%emt 0:00:00]} b6 {[%emt 0:00:00]} 4. Nc3 {[%emt 0:00:00]} Bb7 {[%emt 0:00:38]} 5. a3 {[%emt 0:00:16]} Be7 {[%emt 0:00:11]} 6. d5 {[%emt 0:00:27]} exd5 {[%emt 0:02:41]} 7. cxd5 {[%emt 0:01:09]} d6 {[%emt 0:00:59]} 8. e4 {[%emt 0:02:31]} Nbd7 {[%emt 0:01:12]} 9. Bd3 {[%emt 0:02:42]} O-O {[%emt 0:02:55]} 10. O-O {[%emt 0:01:01]} c6 {[%emt 0:03:07]} 11. dxc6 {[%emt 0:04:11]} Bxc6 {[%emt 0:00:07]} 12. Nd4 {[%emt 0:09:24]} Bb7 {[%emt 0:06:35]} 13. Re1 {[%emt 0:04:11]} Re8 {[%emt 0:02:16]} 14. Nf5 {[%emt 0:06:58]} Bf8 {[%emt 0:01:54]} 15. b4 {[%emt 0:03:38]} d5 {[%emt 0:07:19]} 16. exd5 {[%emt 0:04:47]} Rxe1+ {[%emt 0:00:45]} 17. Qxe1 {[%emt 0:00:10]} Nxd5 {[%emt 0:00:12]} 18. Nxd5 {[%emt 0:04:35]} Bxd5 {[%emt 0:00:06]} 19. Bb2 {[%emt 0:10:32]} Qg5 {[%emt 0:06:15]} 20. Ng3 {[%emt 0:06:38]} Bd6 {[%emt 0:04:59]} 21. Rd1 {[%emt 0:05:54]} Bxg3 {[%emt 0:16:04]} 22. hxg3 {[%emt 0:00:41]} Nf8 {[%emt 0:00:48]} 23. Qc3 {[%emt 0:04:39]} Kh8 {[%emt 0:09:53]} 24. Re1 {[%emt 0:07:57]} f6 {[%emt 0:11:24]} 25. Bc1 {[%emt 0:10:16]} Qg4 {[%emt 0:01:47]} 26. Qd2 {[%emt 0:00:47]} Rd8 {[%emt 0:05:50]} 27. Qe3 {[%emt 0:02:58]} Qe6 {[%emt 0:02:22]} 28. Qd2 {[%emt 0:01:07]} Qd7 {[%emt 0:01:58]} 29. Bf1 {[%emt 0:01:56]} 1/2-1/2

[Event "12th Maria Albulet Memorial 2019"]
[Site "Braila"]
[Date "2019.10.04"]
[Round "4.8"]
[White "Paraschiv, Petronela-Alexandra"]
[Black "Maria, Lia-Alexandra"]
[Result "1/2-1/2"]
[ECO "B53"]
[WhiteElo "1829"]
[BlackElo "1602"]
[Annotator "NA"]
[PlyCount "49"]
[EventDate "2019.10.02"]
[EventType "swiss"]
[EventCountry "ROU"]
[SourceTitle "playchess.com"]
[Source "ChessBase"]
[SourceQuality "1"]
[TimeControl "40/5400+30:900+30"]

1. e4 {[%emt 0:00:00]} c5 {[%emt 0:00:00]} 2. Nf3 {[%emt 0:00:00]} d6 {[%emt 0:00:00]} 3. d4 {[%emt 0:00:00]} cxd4 {[%emt 0:00:00]} 4. Qxd4 {[%emt 0:00:07]} Nf6 {[%emt 0:00:14]} 5. Bg5 {[%emt 0:00:43]} Nc6 {[%emt 0:04:39]} 6. Bb5 {[%emt 0:01:43]} Bd7 {[%emt 0:10:51]} 7. Bxc6 {[%emt 0:00:46]} Bxc6 {[%emt 0:00:42]} 8. Nc3 {[%emt 0:00:46]} h6 {[%emt 0:04:30]} 9. Bh4 {[%emt 0:01:55]} g5 {[%emt 0:14:14]} 10. Bg3 {[%emt 0:00:43]} Bg7 {[%emt 0:00:35]} 11. Qd3 {[%emt 0:01:36]} Qb6 {[%emt 0:13:45]} 12. Rb1 {[%emt 0:09:53]} Rc8 {[%emt 0:12:11]} 13. Nd5 {[%emt 0:06:08]} Nxd5 {[%emt 0:04:17]} 14. exd5 {[%emt 0:00:14]} Qa5+ {[%emt 0:00:53]} 15. c3 {[%emt 0:07:38]} Qxd5 {[%emt 0:01:24]} 16. Qxd5 {[%emt 0:01:17]} Bxd5 {[%emt 0:00:09]} 17. Rd1 {[%emt 0:00:22]} Bc6 {[%emt 0:03:28]} 18. O-O {[%emt 0:01:44]} f5 {[%emt 0:04:26]} 19. h3 {[%emt 0:07:14]} O-O {[%emt 0:02:09]} 20. Nd4 {[%emt 0:03:12]} Bd7 {[%emt 0:01:39]} 21. Rfe1 {[%emt 0:01:53]} e5 {[%emt 0:03:24]} 22. Nb3 {[%emt 0:00:40]} Rf6 {[%emt 0:00:46]} 23. Bxe5 {[%emt 0:00:27]} dxe5 24. Rxd7 Rf7 25. Red1 1/2-1/2

[Event "12th Maria Albulet Memorial 2019"]
[Site "Braila"]
[Date "2019.10.05"]
[Round "5.1"]
[White "Rakhmangulova, Anastasiya"]
[Black "Bucur, Denisa-Andreea"]
[Result "1-0"]
[ECO "C00"]
[WhiteElo "2186"]
[BlackElo "1888"]
[Annotator "ChessBase"]
[PlyCount "73"]
[EventDate "2019.10.02"]
[EventType "swiss"]
[EventCountry "ROU"]
[SourceTitle "playchess.com"]
[Source "ChessBase"]
[SourceQuality "1"]
[TimeControl "40/5400+30:900+30"]

1. e4 {[%emt 0:00:00]} e6 {[%emt 0:00:43]} 2. d3 {[%emt 0:00:00]} d5 {[%emt 0:00:07]} 3. Nd2 {[%emt 0:00:00]} c5 {[%emt 0:00:05]} 4. Ngf3 {[%emt 0:00:00]} Nc6 {[%emt 0:00:10]} 5. g3 {[%emt 0:00:00]} Nf6 {[%emt 0:00:12]} 6. Bg2 {[%emt 0:00:00]} Be7 {[%emt 0:00:08]} 7. O-O {[%emt 0:00:06]} b6 {[%emt 0:00:15]} 8. Re1 {[%emt 0:06:45]} Bb7 {[%emt 0:01:26]} 9. c3 {[%emt 0:07:10]} Qc7 {[%emt 0:00:59]} 10. a4 {[%emt 0:04:57]} h6 {[%emt 0:05:11]} 11. exd5 {[%emt 0:02:06]} Nxd5 {[%emt 0:00:44]} 12. Nc4 {[%emt 0:00:14]} O-O {[%emt 0:01:20]} 13. a5 {[%emt 0:06:38]} b5 {[%emt 0:06:46]} 14. a6 {[%emt 0:06:36]} Bxa6 {[%emt 0:07:49]} 15. Rxa6 {[%emt 0:01:15]} bxc4 {[%emt 0:00:06]} 16. dxc4 {[%emt 0:13:39]} Nb6 {[%emt 0:00:29]} 17. Qe2 {[%emt 0:00:27]} Rad8 {[%emt 0:05:43]} 18. Bf4 {[%emt 0:08:33]} Bd6 {[%emt 0:09:11]} 19. Be3 {[%emt 0:00:06]} Rd7 {[%emt 0:03:30]} 20. Nd2 {[%emt 0:02:45]} Ne7 {[%emt 0:23:54]} 21. Ne4 {[%emt 0:09:54]} Nf5 {[%emt 0:00:24]} 22. Bc1 {[%emt 0:08:23]} Be7 {[%emt 0:07:10]} 23. b3 {[%emt 0:00:57]} Nd6 {[%emt 0:04:54]} 24. Bf4 {[%emt 0:02:10]} Qc8 {[%emt 0:02:52]} 25. Rea1 {[%emt 0:03:03]} Nxe4 {[%emt 0:01:03]} 26. Bxe4 {[%emt 0:01:29]} Bf6 {[%emt 0:01:20]} 27. Qf3 {[%emt 0:00:39]} g5 {[%emt 0:05:28]} 28. Bc1 {[%emt 0:08:14]} Bg7 {[%emt 0:02:30]} 29. Rxa7 {[%emt 0:00:07]} f5 {[%emt 0:03:26]} 30. Bc2 {[%emt 0:01:27]} Rxa7 {[%emt 0:00:53]} 31. Rxa7 {[%emt 0:00:04]} Rf7 {[%emt 0:00:18]} 32. Rxf7 {[%emt 0:03:05]} Kxf7 {[%emt 0:00:05]} 33. g4 {[%emt 0:00:07]} Kf6 {[%emt 0:01:31]} 34. h4 {[%emt 0:01:18]} Bf8 {[%emt 0:02:40]} 35. hxg5+ {[%emt 0:01:30]} hxg5 {[%emt 0:00:02]} 36. gxf5 {[%emt 0:00:10]} exf5 {[%emt 0:00:05]} 37. Qh5 {[%emt 0:00:07]} 1-0

[Event "12th Maria Albulet Memorial 2019"]
[Site "Braila"]
[Date "2019.10.05"]
[Round "5.2"]
[White "Petrenko, Svetlana"]
[Black "Lehaci, Miruna-Daria"]
[Result "1-0"]
[ECO "A22"]
[WhiteElo "2112"]
[BlackElo "2131"]
[Annotator "ChessBase"]
[PlyCount "81"]
[EventDate "2019.10.02"]
[EventType "swiss"]
[EventCountry "ROU"]
[SourceTitle "playchess.com"]
[Source "ChessBase"]
[SourceQuality "1"]
[TimeControl "40/5400+30:900+30"]

1. c4 {[%emt 0:00:00]} e5 {[%emt 0:00:00]} 2. Nc3 {[%emt 0:00:00]} Nf6 {[%emt 0:00:00]} 3. g3 {[%emt 0:00:46]} c6 {[%emt 0:00:00]} 4. e4 {[%emt 0:01:08]} Bc5 {[%emt 0:09:28]} 5. Bg2 {[%emt 0:00:38]} O-O {[%emt 0:00:37]} 6. d3 {[%emt 0:00:47]} d6 {[%emt 0:03:02]} 7. h3 {[%emt 0:05:30]} Be6 {[%emt 0:02:41]} 8. g4 {[%emt 0:04:58]} a5 {[%emt 0:11:51]} 9. Qf3 {[%emt 0:07:06]} Nbd7 {[%emt 0:05:12]} 10. Nge2 {[%emt 0:01:24]} a4 {[%emt 0:04:24]} 11. O-O {[%emt 0:03:39]} Ne8 {[%emt 0:08:48]} 12. Ng3 {[%emt 0:03:34]} Nc7 {[%emt 0:01:04]} 13. Nf5 {[%emt 0:03:43]} b5 {[%emt 0:05:03]} 14. cxb5 {[%emt 0:00:15]} Nxb5 {[%emt 0:00:31]} 15. Nxb5 {[%emt 0:00:47]} cxb5 {[%emt 0:08:01]} 16. Be3 {[%emt 0:04:50]} Qb6 {[%emt 0:15:28]} 17. g5 Ra6 18. h4 {[%emt 0:02:26]} Qd8 {[%emt 0:02:49]} 19. Qg3 {[%emt 0:09:10]} Kh8 {[%emt 0:02:55]} 20. d4 {[%emt 0:05:44]} Bxf5 {[%emt 0:00:48]} 21. dxc5 {[%emt 0:02:08]} Be6 {[%emt 0:00:17]} 22. Rfc1 {[%emt 0:11:01]} dxc5 {[%emt 0:03:10]} 23. Bxc5 {[%emt 0:00:13]} Re8 {[%emt 0:00:06]} 24. Bb4 {[%emt 0:02:17]} Qa8 {[%emt 0:01:36]} 25. a3 {[%emt 0:04:14]} Rc6 {[%emt 0:00:35]} 26. Rd1 {[%emt 0:01:30]} Qb7 {[%emt 0:01:37]} 27. Bc3 {[%emt 0:02:55]} Qc7 {[%emt 0:00:34]} 28. Bf1 {[%emt 0:01:41]} Bc4 {[%emt 0:01:00]} 29. Bh3 {[%emt 0:01:53]} Nf8 {[%emt 0:04:27]} 30. Rd2 {[%emt 0:03:46]} Bb3 {[%emt 0:00:09]} 31. h5 {[%emt 0:02:13]} Rc4 {[%emt 0:00:39]} 32. Bf1 {[%emt 0:04:04]} Rxe4 {[%emt 0:00:45]} 33. Bxb5 {[%emt 0:00:18]} Re7 {[%emt 0:05:18]} 34. Bb4 {[%emt 0:05:16]} f5 {[%emt 0:02:51]} 35. gxf6 {[%emt 0:01:52]} Rf7 {[%emt 0:00:33]} 36. Bxf8 {[%emt 0:01:16]} Rxf8 {[%emt 0:00:06]} 37. Rd7 {[%emt 0:00:56]} Qxd7 {[%emt 0:00:54]} 38. Bxd7 {[%emt 0:00:02]} gxf6 {[%emt 0:00:06]} 39. Rc1 {[%emt 0:01:26]} f5 {[%emt 0:00:49]} 40. f3 {[%emt 0:00:00]} f4 {[%emt 0:00:00]} 41. Qg5 {[%emt 0:03:34]} 1-0

[Event "12th Maria Albulet Memorial 2019"]
[Site "Braila"]
[Date "2019.10.05"]
[Round "5.3"]
[White "Doluhanova, Evgeniya"]
[Black "Cosma, Elena-Luminita"]
[Result "1/2-1/2"]
[ECO "C17"]
[WhiteElo "2285"]
[BlackElo "2313"]
[Annotator "ChessBase"]
[PlyCount "38"]
[EventDate "2019.10.02"]
[EventType "swiss"]
[EventCountry "ROU"]
[SourceTitle "playchess.com"]
[Source "ChessBase"]
[SourceQuality "1"]
[TimeControl "40/5400+30:900+30"]

1. e4 {[%emt 0:00:00]} e6 {[%emt 0:00:00]} 2. d4 {[%emt 0:00:00]} d5 {[%emt 0:00:00]} 3. Nc3 {[%emt 0:00:00]} Bb4 {[%emt 0:00:00]} 4. e5 {[%emt 0:00:00]} c5 {[%emt 0:00:00]} 5. Qg4 {[%emt 0:05:08]} Ne7 {[%emt 0:00:35]} 6. a3 {[%emt 0:00:31]} Qa5 {[%emt 0:12:52]} 7. Nge2 {[%emt 0:07:10]} cxd4 {[%emt 0:09:35]} 8. Rb1 {[%emt 0:08:25]} Bxc3+ {[%emt 0:03:18]} 9. bxc3 {[%emt 0:00:07]} O-O {[%emt 0:04:21]} 10. h4 {[%emt 0:08:06]} Nbc6 {[%emt 0:02:42]} 11. h5 {[%emt 0:01:10]} Nxe5 {[%emt 0:04:45]} 12. Qh4 {[%emt 0:10:00]} f6 {[%emt 0:00:50]} 13. Nxd4 {[%emt 0:11:21]} Nf5 {[%emt 0:11:25]} 14. Nxf5 {[%emt 0:01:02]} exf5 {[%emt 0:00:04]} 15. Qd4 {[%emt 0:06:14]} Re8 {[%emt 0:08:03]} 16. Be2 {[%emt 0:04:12]} Nc6 {[%emt 0:10:50]} 17. Qd3 {[%emt 0:02:13]} Ne5 {[%emt 0:03:20]} 18. Qd4 {[%emt 0:04:35]} Nc6 {[%emt 0:01:17]} 19. Qd3 {[%emt 0:04:02]} Ne5 {[%emt 0:06:57]} 1/2-1/2

[Event "12th Maria Albulet Memorial 2019"]
[Site "Braila"]
[Date "2019.10.05"]
[Round "5.4"]
[White "Navrotescu, Andreea-Cristiana"]
[Black "Verbin, Valentina"]
[Result "1-0"]
[ECO "E24"]
[WhiteElo "2241"]
[BlackElo "2076"]
[Annotator "ChessBase"]
[PlyCount "53"]
[EventDate "2019.10.02"]
[EventType "swiss"]
[EventCountry "ROU"]
[SourceTitle "playchess.com"]
[Source "ChessBase"]
[SourceQuality "1"]
[TimeControl "40/5400+30:900+30"]

1. d4 {[%emt 0:02:30]} Nf6 {[%emt 0:00:00]} 2. c4 {[%emt 0:00:06]} e6 {[%emt 0:00:00]} 3. Nc3 {[%emt 0:00:14]} Bb4 {[%emt 0:00:00]} 4. a3 {[%emt 0:00:05]} Bxc3+ {[%emt 0:00:06]} 5. bxc3 {[%emt 0:00:06]} d5 {[%emt 0:00:09]} 6. e3 {[%emt 0:00:30]} O-O {[%emt 0:00:20]} 7. cxd5 {[%emt 0:01:03]} exd5 {[%emt 0:00:09]} 8. Bd3 {[%emt 0:00:13]} c5 {[%emt 0:02:49]} 9. Ne2 {[%emt 0:00:34]} Nc6 {[%emt 0:02:32]} 10. O-O {[%emt 0:00:42]} Re8 {[%emt 0:04:39]} 11. f3 {[%emt 0:05:29]} Qa5 {[%emt 0:07:35]} 12. Rb1 {[%emt 0:05:20]} a6 {[%emt 0:02:55]} 13. Rb2 {[%emt 0:16:36]} b5 {[%emt 0:03:41]} 14. e4 {[%emt 0:10:03]} cxd4 {[%emt 0:10:57]} 15. cxd4 {[%emt 0:00:25]} Qb6 {[%emt 0:00:11]} 16. Kh1 {[%emt 0:06:50]} dxe4 {[%emt 0:10:30]} 17. fxe4 {[%emt 0:00:30]} Nxe4 {[%emt 0:00:44]} 18. Ng3 {[%emt 0:18:08]} Nxg3+ {[%emt 0:03:24]} 19. hxg3 {[%emt 0:00:05]} Ra7 {[%emt 0:06:23]} 20. Rbf2 {[%emt 0:07:57]} g6 {[%emt 0:08:06]} 21. Rf6 {[%emt 0:04:54]} Be6 {[%emt 0:00:16]} 22. d5 {[%emt 0:00:48]} Bxd5 {[%emt 0:00:23]} 23. Bxg6 {[%emt 0:00:23]} hxg6 {[%emt 0:25:43]} 24. Qxd5 {[%emt 0:00:07]} Qd4 {[%emt 0:00:17]} 25. Rxg6+ {[%emt 0:00:51]} Kf8 {[%emt 0:01:14]} 26. Bh6+ {[%emt 0:00:07]} Ke7 {[%emt 0:00:04]} 27. Rxf7# {[%emt 0:00:07]} 1-0